[Event "Romanian Rapid Open 2022"]
[Site "Sebes"]
[Date "2022.12.02"]
[Round "4.20"]
[White "Nastase, Robert-Paul"]
[Black "Saioc, David"]
[Result "1-0"]
[ECO "B75"]
[WhiteElo "2229"]
[BlackElo "2026"]
[Annotator "TA"]
[PlyCount "119"]
[EventDate "2022.12.02"]
[EventType "rapid"]
[EventCountry "ROU"]
[SourceTitle "playchess.com"]
[Source "ChessBase"]
[SourceQuality "1"]
[TimeControl "600+5"]

{[%evp 14,119,64,70,61,74,66,46,44,25,38,11,35,-24,54,44,44,37,38,42,52,26,45,19,17,25,38,0,14,2,25,-200,-177,-166,-26,-27,-26,-26,-26,-26,-26,-35,-44,-44,0,-27,0,-10,0,-30,-30,-30,0,0,0,0,0,0,6,0,0,0,0,0,0,0,0,0,0,0,0,0,0,0,0,0,0,0,0,0,0,0,0,0,0,0,0,0,29961,29962,29960,3894,2127,1843,1472,30,32,0,6556,5449,1455,1361,29981,29982,29992,29993,29993,29976]} 1. e4 {[%emt 0:00:01]} c5 {[%emt 0:00:02]} 2. Nf3 {[%emt 0:00:01]} d6 {[%emt 0:00:02]} 3. d4 {[%emt 0:00:00]} cxd4 {[%emt 0:00:01]} 4. Nxd4 {[%emt 0:00:01]} Nf6 {[%emt 0:00:01]} 5. Nc3 {[%emt 0:00:00]} g6 {[%emt 0:00:02]} 6. Be3 {[%emt 0:00:02]} a6 {[%emt 0:00:03]} 7. f3 {[%emt 0:00:08]} Bg7 {[%emt 0:00:03]} 8. Qd2 {[%emt 0:00:02]} h5 {[%emt 0:00:02] B75: Sicilian Dragon: Yugoslav Attack, Miscellaneous.} 9. Be2 $1 {[%emt 0:00:29][%mdl 4] is now more promising than 9.0-0-0.} Nbd7 {[%emt 0:00:03]} 10. a4 {[%emt 0:00:11] White is more active.} b6 {[%emt 0:00:04] [#] White is slightly better.} 11. h3 $146 {[%emt 0:00:37]} ({Predecessor:} 11. Nd5 Bb7 12. c4 O-O 13. O-O e6 14. Nxf6+ Nxf6 15. a5 bxa5 16. Nb3 Rb8 17. Nxa5 {1-0 (38) Navara,D (2697)-Adhiban,B (2660) chess24.com INT 2021}) 11... Bb7 {[%emt 0:00:02]} 12. O-O {[%emt 0:00:04]} Rc8 {[%emt 0:00:17]} 13. Na2 {[%emt 0:00:14]} (13. Rad1 $14) 13... Ne5 {[%emt 0:00:24]} ({Better is} 13... d5 $11) 14. b3 $14 {[%emt 0:00:16]} O-O {[%emt 0:03:18]} 15. Nb4 {[%emt 0:00:06]} a5 {[%emt 0:00:05]} 16. Nd3 {[%emt 0:00:15]} Nc6 {[%emt 0:01:04] aiming for ...Nxd4.} 17. Nxc6 {[%emt 0:00:15]} Rxc6 {[%emt 0:00:02]} 18. c4 {[%emt 0:00:07]} Nd7 {[%emt 0:00:22]} 19. Rad1 {[%emt 0:01:15]} Nc5 {[%emt 0:00:40]} 20. Nc1 {[%emt 0:00:08]} (20. Nxc5 {simplifies} bxc5 21. Bd3 Ra6 22. Bc2) 20... Rc8 {[%emt 0:00:43]} 21. Bh6 {[%emt 0:00:05]} Qc7 {[%emt 0:00:40]} 22. g4 $2 {[%emt 0:00:14]} (22. Bd3 $11 {and White has nothing to worry.}) 22... hxg4 {[%emt 0:00:12]} 23. hxg4 {[%emt 0:00:02] [#]} Ne6 {[%emt 0:00:04]} (23... d5 $1 $19 {...Qg3+ is the strong threat.} 24. e5 Qxe5) 24. Kf2 $11 {[%emt 0:00:47]} Bxh6 {[%emt 0:03:09]} 25. Qxh6 {[%emt 0:00:02]} Qc5+ {[%emt 0:00:01]} 26. Qe3 {[%emt 0:00:09]} Kg7 {[%emt 0:00:17]} (26... f6 {seems wilder.} 27. Rh1 Kg7 28. Nd3 Qxe3+ 29. Kxe3 g5) 27. Nd3 {[%emt 0:00:08]} Qxe3+ {[%emt 0:00:09]} 28. Kxe3 {[%emt 0:00:01]} Nc5 {[%emt 0:00:04]} 29. Rb1 {[%emt 0:00:27]} Nxd3 {[%emt 0:00:13]} 30. Bxd3 {[%emt 0:00:02]} Bc6 {[%emt 0:00:01]} 31. f4 {[%emt 0:02:31]} Rh8 {[%emt 0:00:02]} 32. Rh1 {[%emt 0:00:01]} Rxh1 {[%emt 0:00:08]} 33. Rxh1 {[%emt 0:00:01]} Rh8 {[%emt 0:00:05]} 34. Rxh8 {[%emt 0:00:02]} Kxh8 {[%emt 0:00:01][%mdl 4096] Endgame KB-KB} 35. e5 {[%emt 0:00:28]} Kg7 {[%emt 0:00:14]} 36. exd6 exd6 {[%emt 0:00:01]} 37. Be4 {[%emt 0:00:17]} Bd7 {[%emt 0:00:08]} 38. g5 {[%emt 0:00:02]} Kf8 {[%emt 0:00:04]} 39. Kd4 {[%emt 0:00:10]} Be6 {[%emt 0:00:06]} 40. Bd5 {[%emt 0:00:45]} Ke7 {[%emt 0:00:14]} 41. Be4 {[%emt 0:00:07]} Kd7 {[%emt 0:00:05]} 42. Kc3 {[%emt 0:00:09]} Kc7 {[%emt 0:00:06]} 43. b4 {[%emt 0:00:24]} Kd7 {[%emt 0:00:01]} 44. Bb7 {[%emt 0:00:43]} Kc7 {[%emt 0:00:04]} 45. Ba6 {[%emt 0:00:04]} Bd7 {[%emt 0:00:12]} 46. bxa5 {[%emt 0:00:08]} bxa5 {[%emt 0:00:02]} 47. Bb5 {[%emt 0:00:01] Hoping for Bxd7.} Be6 {[%emt 0:00:04]} 48. Kd4 {[%emt 0:00:01]} Kb6 {[%emt 0:00:04]} 49. Be8 {[%emt 0:00:02]} Kc7 {[%emt 0:00:05]} 50. c5 {[%emt 0:00:14]} d5 $2 {[%emt 0:00:07][%mdl 8192] [#]} (50... Ba2 $11) 51. Ke5 {[%emt 0:00:09]} Kd8 {[%emt 0:00:03]} 52. Bb5 {[%emt 0:00:16]} (52. Bc6 $142 d4 53. Kxd4 Bb3 54. Bd5 Bxa4 55. Bxf7 Bc2 56. Bc4 a4 57. Kc3) 52... Kc7 $18 {[%emt 0:00:01]} 53. Kd4 {[%emt 0:00:13]} Kb7 {[%emt 0:00:04]} 54. Kc3 $2 {[%emt 0:00:14]} (54. Be2 $18 {Black must now prevent Bf3.} Kc7 55. Bf3) 54... Kc7 $11 {[%emt 0:00:02]} 55. Kd3 {[%emt 0:00:01] And now Kd4 would win.} Bf5+ $2 {[%emt 0:00:15][%mdl 8192]} (55... Bd7 $11 56. Kc3 Be6) 56. Kd4 $18 {[%emt 0:00:02]} Be6 {[%emt 0:00:01]} 57. Ke5 {[%emt 0:00:07]} Kb7 {[%emt 0:00:04]} 58. Kd6 {[%emt 0:00:08] White mates.} Kc8 {[%emt 0:00:01]} 59. c6 {[%emt 0:00:13]} d4 {[%emt 0:00:06]} 60. Ba6+ {[%emt 0:00:15] Never resign too early!   Weighted Error Value: White=0.37/Black=0.43} 1-0

[Event "Romanian Rapid Open 2022"]
[Site "Sebes"]
[Date "2022.12.02"]
[Round "4.21"]
[White "Craciun, Ovidiu"]
[Black "Vrencian, Lehel"]
[Result "0-1"]
[ECO "B81"]
[WhiteElo "1857"]
[BlackElo "2226"]
[Annotator "TA"]
[PlyCount "78"]
[EventDate "2022.12.02"]
[EventType "rapid"]
[EventCountry "ROU"]
[SourceTitle "playchess.com"]
[Source "ChessBase"]
[SourceQuality "1"]
[TimeControl "600+5"]

{[%evp 14,78,49,29,77,37,47,25,41,-16,0,-30,-4,-46,-20,-22,-31,-58,0,-147,-129,-210,-197,-198,-195,-241,-133,-147,-110,-114,-120,-231,-233,-255,-180,-328,-323,-343,-344,-358,-252,-340,-357,-346,110,-102,-71,-75,-75,-74,-35,-133,0,-84,-134,-145,-8,-8,-8,-8,-8,-8,-8,-87,-24,-29981,-29982]} 1. e4 {[%emt 0:00:03]} c5 {[%emt 0:00:01]} 2. Nf3 {[%emt 0:00:01]} e6 {[%emt 0:00:01]} 3. d4 {[%emt 0:00:03]} cxd4 {[%emt 0:00:01]} 4. Nxd4 {[%emt 0:00:02]} Nf6 {[%emt 0:00:01]} 5. Nc3 {[%emt 0:00:01]} d6 {[%emt 0:00:02]} 6. g4 {[%emt 0:00:03]} h6 {[%emt 0:00:01]} 7. Bg2 {[%emt 0:00:21]} a6 {[%emt 0:00:06]} 8. h4 {[%emt 0:00:04]} h5 {[%emt 0:00:53] B81: Sicilian Scheveningen: Keres Attack.} (8... Nc6 $11 {feels stronger.}) 9. gxh5 {[%emt 0:00:11]} (9. g5 $5 {[%cal Rg5f6]} Ng4 10. Qd2 $16) 9... Nxh5 {[%emt 0:00:04] [#]} 10. Be3 $146 {[%emt 0:00:07]} ({Predecessor:} 10. Bg5 Qc7 11. Qd2 Nc6 12. O-O-O Ne5 13. Qe2 Be7 14. Kb1 g6 15. f4 Ng3 16. Qe1 Nxh1 17. fxe5 dxe5 18. Bxe7 Qxe7 {½-½ (40) Werner,M (2320)-Schoeneberg,M (2295) Germany 1990}) 10... Nc6 {[%emt 0:00:53] White has an edge.} 11. Nce2 {[%emt 0:02:22]} (11. Bf3 $14 Nf6 12. Nxc6 bxc6 13. Qd2) 11... Bd7 {[%emt 0:00:44]} 12. Ng3 {[%emt 0:00:25]} Nxg3 {[%emt 0:00:17]} 13. fxg3 {[%emt 0:00:02]} (13. Nxc6 {simplifies} bxc6 14. fxg3 Rb8 15. Bd4) 13... Qb6 {[%emt 0:00:28]} 14. Qd2 {[%emt 0:00:26]} Qxb2 {[%emt 0:01:07]} 15. O-O {[%emt 0:00:03]} Qa3 {[%emt 0:01:13]} (15... Nxd4 $15 16. Bxd4 Qa3) 16. Qf2 {[%emt 0:00:26]} (16. Nxc6 $1 $11 Bxc6 17. c4) 16... Ne5 $1 $17 {[%emt 0:00:03]} 17. Bh3 {[%emt 0:00:56]} (17. Rab1 $17) 17... Be7 $19 {[%emt 0:00:29]} 18. Rab1 {[%emt 0:00:37]} b5 {[%emt 0:00:30]} (18... Qxa2 19. Nf3 (19. Rxb7 Bf6 $17) 19... Nxf3+ 20. Qxf3 $11) 19. Rb3 {[%emt 0:00:28]} (19. Nf3 {might work better.} O-O 20. c3) 19... Qa5 {[%emt 0:00:35]} ({Better is} 19... Qxa2 $19 20. Bg4 O-O) 20. Nf3 $17 {[%emt 0:01:03]} O-O {[%emt 0:02:25] Hoping for ...Rac8.} (20... Qxa2 $2 21. Nxe5 Rf8 22. Nxd7 Kxd7 23. Bd4 $18) 21. Nxe5 {[%emt 0:00:51]} dxe5 {[%emt 0:00:01]} 22. Rd3 {[%emt 0:00:18]} (22. Bg5 $17 f6 23. Be3) 22... Bc6 $19 {[%emt 0:00:08]} 23. Bg2 {[%emt 0:00:02]} Qa4 {[%emt 0:00:21]} 24. Qf3 {[%emt 0:01:06]} (24. Bc5 $142 Bxc5 25. Qxc5) 24... f5 {[%emt 0:00:05][%cal Rc6e4]} (24... Qxa2 $2 25. Rf2 $19) 25. Qh5 {[%emt 0:00:04]} Bxe4 {[%emt 0:00:11]} (25... fxe4 26. Qxe5 exd3 27. Qxe6+ Kh8 28. Rxf8+ Rxf8 29. Qxe7 $19) 26. Rd7 {[%emt 0:00:09]} Rae8 {[%emt 0:00:26]} (26... Qxc2 $2 27. Rf2 Qb1+ 28. Kh2 $19) 27. Qg6 {[%emt 0:00:07] Bh6 is the strong threat.} Bxg2 $1 {[%emt 0:00:51]} (27... Bxc2 28. Qxe6+ Kh7 29. Rxe7 Rxe7 30. Qxe7 $18) (27... Bf6 $2 28. Bh6 $18) 28. Qxe6+ {[%emt 0:00:14]} Rf7 $2 {[%emt 0:00:11]} (28... Kh7 $19 29. Kxg2 Bg5 $1 {[%mdl 512]}) 29. Kxg2 {[%emt 0:00:15]} (29. Rxf5 $16 {is necessary to keep the advantage.} Qc4 30. Qxc4 (30. Qxe5 $2 {loses.} Bh3 $19) 30... bxc4 31. Rxf7 (31. Rxe5 $2 Bc6 $19) 31... Kxf7 32. Kxg2) 29... Qe4+ {[%emt 0:00:11]} 30. Rf3 {[%emt 0:00:01]} Qxc2+ {[%emt 0:00:02]} 31. Bf2 {[%emt 0:00:53]} Qe4 {[%emt 0:00:09]} 32. Bc5 {[%emt 0:00:14]} Qc2+ {[%emt 0:00:03]} (32... Bxc5 $2 {gets mated.} 33. Qxf7+ Kh8 34. Qxg7#) ({Black should try} 32... Qc4 33. Qxe5 Qxc5 34. Qxc5 Bxc5 35. Rxf7 Kxf7 36. Rxf5+ Kg8 37. Rxc5 Re2+ 38. Kf3 Rxa2) 33. Bf2 $17 {[%emt 0:00:01]} Qc4 {[%emt 0:00:10]} 34. Qxe5 {[%emt 0:00:09]} Qe4 {[%emt 0:00:01]} (34... Qxa2 $17 {aiming for ...Qc4.} 35. Rc3 Qb2) 35. Qxe4 $11 {[%emt 0:00:23]} fxe4 {[%emt 0:00:01][%cal Bf5e4,Be4e3][%mdl 32]} 36. Rxf7 {[%emt 0:00:02]} Kxf7 {[%emt 0:00:01]} 37. Ra7 {[%emt 0:00:00]} Rc8 {[%emt 0:00:07]} 38. g4 {[%emt 0:00:07] [#]} (38. Rxa6 $11 Rc3 39. Be1 Rc2+ 40. Kf1) 38... Rc2 {[%emt 0:00:08]} (38... Rc6 $1 $17 39. a3 Ke6) 39. Rxa6 $2 {[%emt 0:00:06][%mdl 8192]} (39. Kf1 $11) 39... e3 {[%emt 0:00:01] Weighted Error Value: White=0.57/Black=0.51} 0-1

[Event "Romanian Rapid Open 2022"]
[Site "Sebes"]
[Date "2022.12.02"]
[Round "4.22"]
[White "Creanga, Robert-Ionut"]
[Black "Maresanu, Mina-Andrei"]
[Result "1-0"]
[ECO "D10"]
[WhiteElo "2190"]
[BlackElo "1877"]
[Annotator "TA"]
[PlyCount "47"]
[EventDate "2022.12.02"]
[EventType "rapid"]
[EventCountry "ROU"]
[SourceTitle "playchess.com"]
[Source "ChessBase"]
[SourceQuality "1"]
[TimeControl "600+5"]

{[%evp 11,47,31,28,24,24,31,31,31,25,18,11,24,26,18,24,19,64,0,0,0,72,33,25,16,31,22,355,358,2340,2294,2786,2754,2717,2615,2491,2384,29987,29988]} 1. d4 {[%emt 0:00:02]} d5 {[%emt 0:00:03]} 2. c4 {[%emt 0:00:07]} c6 {[%emt 0:00:03]} 3. Nc3 {[%emt 0:00:14]} Nf6 {[%emt 0:00:03]} 4. e3 {[%emt 0:00:10]} Bf5 {[%emt 0:00:42]} 5. cxd5 {[%emt 0:00:08]} cxd5 {[%emt 0:00:02]} 6. Qb3 {[%emt 0:00:11]} Bc8 {[%emt 0:00:33]} 7. Nf3 {[%emt 0:00:38] D10: Slav Defence: 3 cxd5 (without early Nf3) and 3 Nc3.} Nc6 {[%emt 0:00:12]} 8. Ne5 {[%emt 0:00:37] 8.Bd3 is more fashionable.} e6 {[%emt 0:00:30]} 9. f4 {[%emt 0:01:08] White is slightly better.} Be7 {[%emt 0:00:52]} 10. Bd3 {[%emt 0:01:00]} O-O {[%emt 0:00:35]} 11. O-O {[%emt 0:00:18]} Na5 {[%emt 0:00:25][%cal Bc6a5,Ba5b7,Bb7d6][%mdl 32]} 12. Qd1 {[%emt 0:00:36]} b6 {[%emt 0:01:09] [#]} 13. Qf3 $146 {[%emt 0:01:14]} ({Predecessor:} 13. Rf3 Bb7 14. Rh3 g6 15. Qf3 Nc6 16. Bd2 Ne8 17. Ng4 f5 18. Nh6+ Kg7 19. g4 {1-0 (51) Chatalbashev,B (2529)-Ipek,A (2269) Antalya 2002}) 13... Nb7 {[%emt 0:00:47]} 14. g4 {[%emt 0:00:43]} ({Better is} 14. e4 $14) 14... Nd6 $11 {[%emt 0:01:20]} 15. g5 {[%emt 0:00:25]} Nfe8 {[%emt 0:00:42]} (15... Nfe4 $1 $11 {keeps the balance.}) 16. Qh3 {[%emt 0:01:48][%csl Gd3][%cal Rh3h7] [#] White is much more active.} (16. Nc6 {simplifies} Qc7 17. Nxe7+ Qxe7 18. b3) 16... g6 {[%emt 0:01:54]} 17. Bd2 {[%emt 0:00:19]} (17. a4 {simplifies} a6 18. Nc6 Qc7 19. Nxe7+ Qxe7 20. b3) 17... Ng7 {[%emt 0:00:23]} 18. Rac1 $40 {[%emt 0:00:23][%mdl 128] White has some attack.} f6 $2 {[%emt 0:01:11][%mdl 8192] [#] A mistake that costs the game.} (18... Bb7 $11) 19. Nxg6 $1 $18 {[%emt 0:00:29]} e5 $2 {[%emt 0:00:00]} (19... f5) 20. Nxe7+ {[%emt 0:00:19]} Qxe7 {[%emt 0:00:02]} 21. Qxh7+ {[%emt 0:00:13]} Kf7 {[%emt 0:00:02]} 22. fxe5 {[%emt 0:00:19][%cal Rg5f6] White wants to mate with gxf6!} f5 {[%emt 0:00:05]} 23. Nxd5 {[%emt 0:00:15]} Qe6 {[%emt 0:00:11]} 24. Nf4 {[%emt 0:00:08] Weighted Error Value: White=0.09 (flawless) /Black=0.73} 1-0

[Event "Romanian Rapid Open 2022"]
[Site "Sebes"]
[Date "2022.12.02"]
[Round "4.23"]
[White "Vasilca, Cornel"]
[Black "Stefan, Romulus-Cristian"]
[Result "0-1"]
[ECO "B07"]
[WhiteElo "1520"]
[BlackElo "2097"]
[Annotator "TA"]
[PlyCount "148"]
[EventDate "2022.12.02"]
[EventType "rapid"]
[EventCountry "ROU"]
[SourceTitle "playchess.com"]
[Source "ChessBase"]
[SourceQuality "1"]
[TimeControl "600+5"]

{[%evp 9,148,41,49,49,51,54,50,27,41,11,15,17,37,23,68,12,21,17,24,16,18,0,47,67,196,59,248,250,222,230,849,57,1097,34,171,102,188,202,190,89,81,78,81,-227,-226,-245,-196,-182,-197,-186,-186,-182,-157,-216,-206,-238,-264,-372,-277,-429,-441,-482,-474,-493,-477,-567,-541,-494,-430,-764,-756,-744,-747,-717,-715,-768,-743,-1060,-1062,-994,-965,-900,-816,-1246,-1246,-5465,-5010,-1065,-412,-353,-62,-62,-62,-62,-62,-61,-50,-50,0,-68,-69,-315,-50,-68,-44,-69,-70,-159,-58,-58,-58,-403,-406,-407,-389,-370,-362,-403,-384,-526,-531,-720,-743,-818,-185,-185,-185,-1524,-1377,-7335,-5628,-29974,-29973,-29974,-29975,-29979,-29980,-29982,-29983,-29988,-29989]} 1. e4 {[%emt 0:00:01]} d6 {[%emt 0:00:03]} 2. d4 {[%emt 0:00:02]} Nf6 {[%emt 0:00:01]} 3. f3 {[%emt 0:00:05]} Nbd7 {[%emt 0:00:10]} 4. Be3 {[%emt 0:00:06]} e5 {[%emt 0:00:02]} 5. d5 {[%emt 0:00:01]} h5 {[%emt 0:00:03]} 6. c4 {[%emt 0:00:09] B07: Pirc Defence: Miscellaneous Systems.} Be7 {[%emt 0:00:02]} 7. Nc3 {[%emt 0:00:01]} Nh7 {[%emt 0:00:02] [#]} 8. Bd3 $146 {[%emt 0:00:14] White is slightly better.} ({Predecessor:} 8. Qd2 Bg5 9. Bxg5 Qxg5 10. Qxg5 Nxg5 11. h4 Nh7 12. g3 Ke7 13. Bh3 Nhf6 14. Nge2 Nc5 15. Bxc8 Rhxc8 16. Kd2 c6 {½-½ (16) Livaic,L (2468)-Markus,R (2615) Skopje 2018}) 8... Bg5 {[%emt 0:00:06]} 9. Qd2 {[%emt 0:00:16]} Nc5 {[%emt 0:00:10]} 10. Bc2 {[%emt 0:00:15]} a5 {[%emt 0:00:02]} 11. Nge2 {[%emt 0:00:27]} Bd7 {[%emt 0:00:13]} 12. O-O {[%emt 0:00:23]} (12. f4 $14 Bf6 13. O-O) 12... Bxe3+ $11 {[%emt 0:00:09]} 13. Qxe3 {[%emt 0:00:03]} O-O {[%emt 0:00:06]} 14. f4 {[%emt 0:00:28]} exf4 {[%emt 0:00:02]} 15. Nxf4 {[%emt 0:00:24]} (15. Rxf4 {is interesting.} Qg5 16. Raf1 Rae8 17. h3) 15... g6 {[%emt 0:00:12]} (15... Qg5 $11 {was preferrable.}) 16. e5 $14 {[%emt 0:00:40]} dxe5 {[%emt 0:00:06]} (16... Qg5 $1 $14) 17. Qxe5 {[%emt 0:00:08]} (17. Qxc5 $6 exf4 18. Rae1 (18. Rxf4 Re8 $14) 18... b6 $14) (17. Nxh5 $18 {Threatening mate with Qh6.} Bg4 18. Qxc5 Bxh5 19. Rae1) 17... Re8 $2 {[%emt 0:00:12]} (17... Qg5 $1 $14 18. Qd4 (18. Qxc7 Rfc8 $14) 18... b6) 18. Qd4 $18 {[%emt 0:00:12] And now Nxh5 would win.} Qe7 {[%emt 0:00:05]} 19. Rae1 $1 {[%emt 0:00:22] Against b6} Qd6 {[%emt 0:00:03] [#]} (19... Qxe1 20. Rxe1 Rxe1+ 21. Kf2 Rc1 22. Bxg6 fxg6) 20. a3 $2 {[%emt 0:00:46]} (20. Nxh5 $1 $18 {[%csl Gh5][%cal Rd4g7][%mdl 512]} Qf8 (20... f6 21. Bxg6) 21. Rxe8 Rxe8 22. Bxg6) 20... a4 $2 {[%emt 0:00:04][%mdl 8192] [#]} (20... Rxe1 $14 21. Rxe1 a4) 21. Qf2 $2 {[%emt 0:01:17]} (21. Nxh5 $1 $18 {[%csl Gh5][%cal Rd4g7][%mdl 512]} f6 (21... Qf8 22. Rxe8) 22. Bxg6 Rxe1 23. Rxe1) 21... Rf8 {[%emt 0:00:43]} (21... Rxe1 $14 22. Rxe1 Re8 23. Rxe8+ Bxe8) 22. Qg3 {[%emt 0:00:33]} (22. Nd3 $18 Nxd3 23. Bxd3) 22... Kh8 {[%emt 0:00:57] [#]} (22... Rae8 $16) 23. Bxg6 $1 {[%emt 0:00:21][%mdl 512]} Rg8 {[%emt 0:00:02] [#]} 24. Qe3 $1 {[%emt 0:02:58]} fxg6 {[%emt 0:00:10]} (24... Rxg6 25. Nxg6+) 25. Qd4+ {[%emt 0:00:12]} Rg7 {[%emt 0:00:10] [#] ...Rf8 is the strong threat.} (25... Nf6 $2 26. Nxh5 $1 {[%mdl 512]} Nb3 27. Qxf6+ Qxf6 28. Nxf6 $18) 26. Ne4 $2 {[%emt 0:00:43][%mdl 8192]} (26. Re7 $1 $16 {[%csl Ge7][%cal Rd4g7] is necessary to keep the advantage.} Nf6 27. Rxg7 Kxg7 28. Ne6+ Bxe6 29. Rxf6 (29. Qxf6+ Kh7 $16)) 26... Nxe4 $19 {[%emt 0:00:08]} 27. Rxe4 {[%emt 0:00:04]} b6 {[%emt 0:00:19]} 28. Ne6 {[%emt 0:00:22]} Bxe6 {[%emt 0:00:06]} 29. Rxe6 {[%emt 0:00:02]} Qc5 {[%emt 0:00:17]} 30. Qxc5 {[%emt 0:00:05]} bxc5 {[%emt 0:00:01]} 31. Rc6 {[%emt 0:00:02]} (31. Rfe1 $17 {was worth a try.}) 31... Rb8 {[%emt 0:00:06]} 32. Rxc5 {[%emt 0:00:19]} Rxb2 {[%emt 0:00:10]} 33. Re1 {[%emt 0:00:06]} (33. Rc6 $142) 33... Nf6 {[%emt 0:00:14]} 34. h3 {[%emt 0:00:08]} (34. Ra5 {was necessary.}) 34... h4 {[%emt 0:00:32]} 35. Rc6 {[%emt 0:00:10]} Nh5 {[%emt 0:00:03]} 36. c5 {[%emt 0:00:21]} Rc2 {[%emt 0:00:19]} 37. d6 {[%emt 0:00:07]} cxd6 {[%emt 0:00:08]} 38. Rxd6 {[%emt 0:00:01]} Rxc5 {[%emt 0:00:05]} 39. Re8+ {[%emt 0:00:03]} (39. Rd4 $142 g5 40. Rxa4) 39... Kh7 {[%emt 0:00:16]} 40. Rdd8 {[%emt 0:00:02]} g5 {[%emt 0:00:05]} 41. Rh8+ {[%emt 0:00:03]} Kg6 {[%emt 0:00:01] White must now prevent ...Rc1+.} 42. Rd6+ {[%emt 0:00:01]} Nf6 {[%emt 0:00:01]} 43. Rf8 {[%emt 0:00:02]} Rf5 {[%emt 0:00:02] aiming for ...Re7.} 44. Ra8 {[%emt 0:00:07]} Rf4 {[%emt 0:00:06]} 45. Raa6 {[%emt 0:00:06]} Rb7 {[%emt 0:00:08]} 46. Kh2 {[%emt 0:00:03]} Rb2 {[%emt 0:00:03]} 47. Rd8 {[%emt 0:00:11]} Rff2 {[%emt 0:00:19]} 48. Rg8+ {[%emt 0:00:11]} Kf7 {[%emt 0:00:35]} (48... Kh6 $142 49. Rc8 Rxg2+ 50. Kh1 Rgf2) 49. Rxg5 {[%emt 0:00:02]} Rf4 {[%emt 0:00:50]} (49... Ne4 $19 50. Ra7+ Kf6) 50. Ra7+ $15 {[%emt 0:00:05]} Ke6 {[%emt 0:00:06] Hoping for ...Re2.} 51. Ra6+ {[%emt 0:00:04]} Ke7 {[%emt 0:01:33]} 52. Ra7+ {[%emt 0:00:03]} Kd6 {[%emt 0:00:55] Strongly threatening ...Rd2.} 53. Ra6+ $1 {[%emt 0:00:07]} Ke7 {[%emt 0:00:33]} ({Black should play} 53... Kc7 $15 54. Rg7+ Kb8) 54. Rg7+ {[%emt 0:00:09]} (54. Ra7+ $1 $11 Ke8 55. Rgg7) 54... Kf8 {[%emt 0:00:01]} 55. Rc7 {[%emt 0:00:13]} (55. Raa7 $1 $15) 55... Rb8 $2 {[%emt 0:00:06]} (55... Rff2 $19 56. Rxa4 Rxg2+ 57. Kh1 Rgd2 58. Ra8+ Ne8) 56. Raa7 {[%emt 0:00:05]} Ne8 {[%emt 0:00:20]} 57. Rh7 {[%emt 0:00:03][%cal Rh7h8]} Kg8 {[%emt 0:00:03] Inhibits Rh8+.} 58. Rh5 {[%emt 0:00:05] [#]} (58. Rhd7 $15) 58... Nd6 {[%emt 0:00:51]} (58... Rc8 $1 $17 59. Rg5+ Kf8) 59. Rg5+ {[%emt 0:00:03]} Kf8 {[%emt 0:00:01] Threatens to win with ...Rb1.} 60. Rh7 $2 {[%emt 0:00:05][%mdl 8192]} ({White should try} 60. Rg4 $15 Rxg4 61. hxg4) 60... Nf7 $19 {[%emt 0:00:03]} 61. Rc5 {[%emt 0:00:07]} Kg8 {[%emt 0:00:08]} 62. Rhh5 {[%emt 0:00:03]} Rb3 {[%emt 0:00:06]} 63. Rc8+ {[%emt 0:00:01]} Kg7 {[%emt 0:00:01]} 64. Rc7 {[%emt 0:00:03]} Rxa3 {[%emt 0:00:03]} 65. Rg5+ {[%emt 0:00:04]} Kf6 {[%emt 0:00:07]} 66. Rb5 {[%emt 0:00:04]} Rb3 $2 {[%emt 0:00:03]} (66... Rf2 67. Ra7 Raa2 68. Rb6+ Kg7) 67. Rc6+ {[%emt 0:00:02]} Kg7 {[%emt 0:00:02]} 68. Rd5 $2 {[%emt 0:00:03]} (68. Rxb3 axb3 69. Rb6) 68... a3 {[%emt 0:00:11][%cal Ba4a3,Ba3a2][%mdl 32]} 69. Rc7 {[%emt 0:00:03]} Rb2 {[%emt 0:00:06] ( -> ...Rff2)} 70. Rg5+ {[%emt 0:00:04]} Kf6 {[%emt 0:00:01] Black mates.} 71. Ra5 {[%emt 0:00:02]} a2 {[%emt 0:00:02]} 72. Ra6+ {[%emt 0:00:01]} Kg7 {[%emt 0:00:03]} 73. Rca7 {[%emt 0:00:03]} Rff2 {[%emt 0:00:01]} 74. Rxf7+ {[%emt 0:00:13]} Kxf7 {[%emt 0:00:05] Never resign too early!   Weighted Error Value: White=0.87/Black=0.32} 0-1